fUST/lending_fUST_20250603
["ID","MTS","AMOUNT","RATE_DAILY","PERIOD"]
[363934274,1748938243664,-1640.36,0.00016986,2]
[363934276,1748938243676,-1712.17,0.00016986,2]
[363934278,1748938243689,-554.27,0.00016986,2]
[363934280,1748938243701,-440.0,0.00016986,2]
[363934281,1748938243713,-440.0,0.00016986,2]
[363934282,1748938243724,-440.0,0.00016986,2]
[363934283,1748938243735,-440.0,0.00016986,2]
[363934284,1748938243746,-332.55,0.00016986,2]
[363934285,1748938243757,-829.22,0.00016986,2]
[363934286,1748938243769,-379.26708582,0.00016986,2]
[363934287,1748938243780,-440.0,0.00016986,2]
[363934288,1748938243792,-562.77176856,0.00016986,2]
[363934289,1748938243804,-440.0,0.00016986,2]
[363934290,1748938243817,-984.8,0.00016986,2]
[363934291,1748938243829,-440.0,0.00016986,2]
[363934292,1748938243841,-976.43,0.00016986,2]
[363934293,1748938243852,-447.98,0.00016986,2]
[363934294,1748938243864,-440.0,0.00016986,2]
[363934295,1748938243876,-440.0,0.00016986,2]
[363934296,1748938243888,-440.0,0.00016986,2]
[363934297,1748938243899,-870.31,0.00016986,2]
[363934298,1748938243910,-440.0,0.00016986,2]
[363934299,1748938243922,-440.0,0.00016986,2]
[363934300,1748938243933,-700.74,0.00016986,2]
[363934301,1748938243945,-440.0,0.00016986,2]
[363934302,1748938243956,-440.0,0.00016986,2]
[363934303,1748938243967,-440.0,0.00016986,2]
[363934304,1748938243979,-440.0,0.00016986,2]
[363934305,1748938243991,-500.0,0.00017146,2]
[363934306,1748938244003,-500.0,0.00017146,2]
[363934307,1748938244015,-506.73672877,0.00017148,2]
[363934308,1748938244026,-500.0,0.00017148,2]
[363934309,1748938244038,-500.0,0.00017148,2]
[363934310,1748938244050,-1550.25602371,0.00017176,2]
[363934311,1748938244063,-502.34771245,0.00017185,2]
[363934312,1748938244076,-500.0,0.00017185,2]
[363934313,1748938244088,-500.0,0.00017215,2]
[363934314,1748938244274,-500.0,0.00017215,2]
[363934315,1748938244287,-440.0,0.0001726,2]
[363934316,1748938244298,-440.0,0.0001726,2]
[363934317,1748938244307,-440.0,0.0001726,2]
[363934318,1748938244318,-440.0,0.0001726,2]
[363934319,1748938244328,-440.0,0.0001726,2]
[363934320,1748938244338,-440.0,0.0001726,2]
[363934321,1748938244348,-215.1268,0.0001726,2]
[363934322,1748938244358,-347.29,0.0001726,2]
[363934323,1748938244368,-440.0,0.0001726,2]
[363934324,1748938244377,-440.0,0.0001726,2]
[363934325,1748938244388,-509.79,0.0001726,2]
[363934326,1748938244397,-440.0,0.0001726,2]
[363934327,1748938244407,-440.0,0.0001726,2]
[363934328,1748938244416,-440.0,0.0001726,2]
[363934329,1748938244426,-997.71,0.0001726,2]
[363934330,1748938244436,-470.36,0.0001726,2]
[363934331,1748938244445,-1616.35,0.0001726,2]
[363934333,1748938244455,-440.0,0.0001726,2]
[363934335,1748938244465,-440.0,0.0001726,2]
[363934337,1748938244474,-1272.71,0.0001726,2]
[363934339,1748938244484,-440.0,0.0001726,2]
[363934341,1748938244494,-440.0,0.0001726,2]
[363934343,1748938244503,-440.0,0.0001726,2]
[363934344,1748938244512,-440.0,0.0001726,2]
[363934346,1748938244522,-440.0,0.0001726,2]
[363934348,1748938244532,-440.0,0.0001726,2]
[363934350,1748938244541,-440.0,0.0001726,2]
[363934352,1748938244550,-1941.54,0.0001726,2]
[363934354,1748938244559,-440.0,0.0001726,2]
[363934355,1748938244570,-440.0,0.0001726,2]
[363934357,1748938244580,-440.0,0.0001726,2]
[363934358,1748938244589,-440.0,0.0001726,2]
[363934359,1748938244598,-440.0,0.0001726,2]
[363934361,1748938244608,-440.0,0.0001726,2]
[363934363,1748938244618,-440.0,0.0001726,2]
[363934364,1748938244627,-440.0,0.0001726,2]
[363934365,1748938244637,-468.1,0.0001726,2]
[363934366,1748938244646,-1941.77,0.0001726,2]
[363934367,1748938244657,-440.0,0.0001726,2]
[363934368,1748938244667,-440.0,0.0001726,2]
[363934369,1748938244676,-1228.53,0.0001726,2]
[363934370,1748938244685,-410.0,0.0001726,2]
[363934371,1748938244695,-440.0,0.0001726,2]
[363934372,1748938244705,-1831.97,0.0001726,2]
[363934373,1748938244715,-641.86,0.0001726,2]
[363934374,1748938244725,-1640.36,0.0001726,2]
[363934375,1748938244734,-1712.17,0.0001726,2]
[363934376,1748938244744,-554.27,0.0001726,2]
[363934377,1748938244754,-440.0,0.0001726,2]
[363934378,1748938244764,-390.0,0.0001726,2]
[363934379,1748938244774,-440.0,0.0001726,2]
[363934380,1748938244783,-440.0,0.0001726,2]
[363934381,1748938244793,-829.22,0.0001726,2]
[363934382,1748938244803,-440.0,0.0001726,2]
[363934383,1748938244813,-440.0,0.0001726,2]
[363934384,1748938244822,-984.8,0.0001726,2]
[363934385,1748938244832,-410.0,0.0001726,2]
[363934386,1748938244841,-976.43,0.0001726,2]
[363934387,1748938244851,-440.0,0.0001726,2]
[363934388,1748938244860,-212.44,0.0001726,2]
[363934389,1748938244869,-440.0,0.0001726,2]
[363934390,1748938244879,-870.31,0.0001726,2]
[363934391,1748938244888,-440.0,0.0001726,2]
[363934392,1748938244897,-440.0,0.0001726,2]
[363934393,1748938244907,-700.74,0.0001726,2]
[363934394,1748938244916,-440.0,0.0001726,2]
[363934395,1748938244925,-440.0,0.0001726,2]
[363934396,1748938244934,-440.0,0.0001726,2]
[363934397,1748938244944,-440.0,0.0001726,2]
[363934398,1748938244953,-1550.25602371,0.00017452,2]
[363934399,1748938244962,-620.36,0.00017531,2]
[363934400,1748938244972,-440.0,0.00017534,2]
[363934401,1748938244981,-222.84,0.00017534,2]
[363934402,1748938244990,-440.0,0.00017534,2]
[363934403,1748938244999,-440.0,0.00017534,2]
[363934404,1748938245009,-440.0,0.00017534,2]
[363934405,1748938245020,-440.0,0.00017534,2]
[363934406,1748938245030,-440.0,0.00017534,2]
[363934407,1748938245040,-509.79,0.00017534,2]
[363934408,1748938245049,-337.19311173,0.00017534,2]
[363934409,1748938245058,-440.0,0.00017534,2]
[363934410,1748938245069,-440.0,0.00017534,2]
[363934411,1748938245079,-997.71,0.00017534,2]
[363934412,1748938245088,-470.36,0.00017534,2]
[363934413,1748938245098,-1616.35,0.00017534,2]
[363934414,1748938245107,-440.0,0.00017534,2]
[363934415,1748938245117,-440.0,0.00017534,2]
[363934416,1748938245127,-1272.71,0.00017534,2]
[363934417,1748938245136,-440.0,0.00017534,2]
[363934418,1748938245146,-440.0,0.00017534,2]
[363934419,1748938245156,-440.0,0.00017534,2]
[363934420,1748938245165,-440.0,0.00017534,2]
[363934421,1748938245175,-440.0,0.00017534,2]
[363934422,1748938245184,-350.0,0.00017534,2]
[363934423,1748938245194,-440.0,0.00017534,2]
[363934424,1748938245203,-1941.54,0.00017534,2]
[363934425,1748938245213,-387.59648477,0.00017534,2]
[363934426,1748938245223,-440.0,0.00017534,2]
[363934427,1748938245233,-440.0,0.00017534,2]
[363934428,1748938245242,-440.0,0.00017534,2]
[363934429,1748938245252,-440.0,0.00017534,2]
[363934430,1748938245261,-440.0,0.00017534,2]
[363934431,1748938245271,-440.0,0.00017534,2]
[363934432,1748938245281,-440.0,0.00017534,2]
[363934433,1748938245291,-468.1,0.00017534,2]
[363934434,1748938245304,-1941.77,0.00017534,2]
[363934435,1748938245314,-440.0,0.00017534,2]
[363934436,1748938245324,-390.0,0.00017534,2]
[363934437,1748938245334,-1228.53,0.00017534,2]
[363934438,1748938245345,-440.0,0.00017534,2]
[363934439,1748938245355,-1831.97,0.00017534,2]
[363934440,1748938245365,-641.86,0.00017534,2]
[363934441,1748938245376,-1640.36,0.00017534,2]
[363934442,1748938245385,-1712.17,0.00017534,2]
[363934443,1748938245395,-554.27,0.00017534,2]
[363934444,1748938245405,-440.0,0.00017534,2]
[363934445,1748938245415,-440.0,0.00017534,2]
[363934446,1748938245424,-440.0,0.00017534,2]
[363934447,1748938245434,-829.22,0.00017534,2]
[363934448,1748938245444,-440.0,0.00017534,2]
[363934449,1748938245454,-440.0,0.00017534,2]
[363934450,1748938245464,-984.8,0.00017534,2]
[363934451,1748938245474,-976.43,0.00017534,2]
[363934452,1748938245484,-440.0,0.00017534,2]
[363934453,1748938245494,-440.0,0.00017534,2]
[363934454,1748938245504,-870.31,0.00017534,2]
[363934455,1748938245514,-440.0,0.00017534,2]
[363934456,1748938245524,-440.0,0.00017534,2]
[363934457,1748938245534,-700.74,0.00017534,2]
[363934458,1748938245544,-420.0,0.00017534,2]
[363934459,1748938245553,-440.0,0.00017534,2]
[363934460,1748938245563,-239.41773825,0.00017534,2]
[363934461,1748938245573,-440.0,0.00017534,2]
[363934462,1748938245583,-250.0,0.000176,30]
[363934463,1748938245592,-1000.0,0.00017694,2]
[363934464,1748938245602,-193.77934823,0.00017696,2]
[363934465,1748938245611,-1000.0,0.00017696,2]
[363934466,1748938245621,-1550.25602371,0.00017728,2]
[363934467,1748938245631,-1012.15365815,0.00017733,2]
[363934468,1748938245641,-160.0,0.00017807,2]
[363934469,1748938245650,-620.36,0.00017807,2]
[363934470,1748938245660,-22924.44602016,0.00017808,3]
[363934471,1748938245670,-440.0,0.00017808,2]
[363934472,1748938245679,-440.0,0.00017808,2]
[363934473,1748938245689,-440.0,0.00017808,2]
[363934474,1748938245698,-440.0,0.00017808,2]
[363934475,1748938245709,-440.0,0.00017808,2]
[363934476,1748938245719,-170.3752096,0.00017808,2]
[363934477,1748938245728,-509.79,0.00017808,2]
[363934478,1748938245738,-440.0,0.00017808,2]
[363934479,1748938245748,-440.0,0.00017808,2]
[363934480,1748938245758,-997.71,0.00017808,2]
[363934481,1748938245768,-470.36,0.00017808,2]
[363934482,1748938245778,-1616.35,0.00017808,2]
[363934483,1748938245787,-440.0,0.00017808,2]
[363934484,1748938245797,-440.0,0.00017808,2]
[363934485,1748938245807,-1272.71,0.00017808,2]
[363934486,1748938245818,-440.0,0.00017808,2]
[363934487,1748938245827,-440.0,0.00017808,2]
[363934488,1748938245837,-440.0,0.00017808,2]
[363934489,1748938245847,-440.0,0.00017808,2]
[363934490,1748938245859,-440.0,0.00017808,2]
[363934491,1748938245868,-397.8,0.00017808,2]
[363934492,1748938245878,-1941.54,0.00017808,2]
[363934493,1748938245887,-440.0,0.00017808,2]
[363934494,1748938245897,-440.0,0.00017808,2]
[363934495,1748938245906,-440.0,0.00017808,2]
[363934496,1748938245916,-440.0,0.00017808,2]
[363934497,1748938245925,-552.71620062,0.00017808,2]
[363934498,1748938245934,-440.0,0.00017808,2]
[363934499,1748938245943,-440.0,0.00017808,2]
[363934500,1748938245953,-468.1,0.00017808,2]
[363934501,1748938245963,-1941.77,0.00017808,2]
[363934502,1748938245972,-440.0,0.00017808,2]
[363934504,1748938245984,-1228.53,0.00017808,2]
[363934505,1748938245996,-440.0,0.00017808,2]
[363934506,1748938246006,-1831.97,0.00017808,2]
[363934507,1748938246018,-641.86,0.00017808,2]
[363934508,1748938246029,-1640.36,0.00017808,2]
[363934509,1748938246038,-1712.17,0.00017808,2]
[363934510,1748938246048,-554.27,0.00017808,2]
[363934511,1748938246058,-440.0,0.00017808,2]
[363934512,1748938246068,-440.0,0.00017808,2]
[363934513,1748938246077,-440.0,0.00017808,2]
[363934514,1748938246087,-829.22,0.00017808,2]
[363934515,1748938246096,-440.0,0.00017808,2]
[363934516,1748938246106,-440.0,0.00017808,2]
[363934517,1748938246115,-984.8,0.00017808,2]
[363934518,1748938246125,-976.43,0.00017808,2]
[363934519,1748938246134,-440.0,0.00017808,2]
[363934520,1748938246143,-440.0,0.00017808,2]
[363934521,1748938246151,-870.31,0.00017808,2]
[363934522,1748938246160,-440.0,0.00017808,2]
[363934523,1748938246169,-440.0,0.00017808,2]
[363934524,1748938246178,-700.74,0.00017808,2]
[363934525,1748938246188,-440.0,0.00017808,2]
[363934526,1748938246198,-440.0,0.00017808,2]
[363934527,1748938246208,-168.60597056,0.00017874,2]
[363934528,1748938246218,-420.0,0.00017922,2]
[363934530,1748938246228,-620.36,0.00017936,2]
[363934531,1748938246237,-160.0,0.0001799,2]
[363934533,1748938246247,-56340.67812177,0.00017991,2]
[363934534,1748938246258,-12670.76136593,0.00017991,2]
[363934535,1748938246267,-160.0,0.00017991,2]
[363934536,1748938246277,-160.0,0.00017991,2]
[363934537,1748938246287,-160.0,0.00017991,2]
[363934539,1748938246298,-229.42821335,0.00017991,2]
[363934540,1748938246309,-842.5625,0.00017991,2]
[363934542,1748938246320,-160.0,0.00017991,2]
[363934544,1748938246330,-160.0,0.00017991,2]
[363934546,1748938246340,-423.63107087,0.00017991,2]
[363934548,1748938246350,-212.86879254,0.00017991,2]
[363934550,1748938246359,-208.6,0.00018,2]
[363934551,1748938246369,-1550.25602371,0.00018003,2]
[363934553,1748938246379,-1000.0,0.00018039,7]
[363934555,1748938246389,-1000.0,0.00018039,7]
[363934557,1748938246399,-1000.0,0.00018039,7]
[363934559,1748938246410,-1000.0,0.00018039,7]
[363934561,1748938246420,-1000.0,0.00018039,2]
[363934563,1748938246431,-1000.0,0.00018039,2]
[363934564,1748938246440,-1000.0,0.00018039,2]
[363934565,1748938246450,-620.36,0.00018081,2]
[363934567,1748938246459,-187.22754094,0.00018082,2]
[363934568,1748938246469,-440.0,0.00018082,2]
[363934570,1748938246479,-440.0,0.00018082,2]
[363934572,1748938246489,-462.67521261,0.00018082,2]
[363934574,1748938246499,-440.0,0.00018082,2]
[363934575,1748938246509,-509.79,0.00018082,2]
[363934576,1748938246519,-440.0,0.00018082,2]
[363934577,1748938246529,-440.0,0.00018082,2]
[363934578,1748938246539,-997.71,0.00018082,2]
[363934579,1748938246549,-470.36,0.00018082,2]
[363934580,1748938246558,-1616.35,0.00018082,2]
[363934581,1748938246572,-574.07406986,0.00018082,2]
[363934582,1748938246582,-440.0,0.00018082,2]
[363934583,1748938246592,-1272.71,0.00018082,2]
[363934584,1748938246602,-440.0,0.00018082,2]
[363934585,1748938246611,-440.0,0.00018082,2]
[363934586,1748938246621,-440.0,0.00018082,2]
[363934587,1748938246631,-440.0,0.00018082,2]
[363934588,1748938246640,-440.0,0.00018082,2]
[363934590,1748938246650,-1941.54,0.00018082,2]
[363934592,1748938246659,-440.0,0.00018082,2]
[363934594,1748938246669,-440.0,0.00018082,2]
[363934595,1748938246679,-440.0,0.00018082,2]
[363934596,1748938246688,-310.0,0.00018082,2]
[363934597,1748938246698,-440.0,0.00018082,2]
[363934598,1748938246708,-440.0,0.00018082,2]
[363934599,1748938246718,-468.1,0.00018082,2]
[363934600,1748938246728,-1941.77,0.00018082,2]
[363934601,1748938246738,-440.0,0.00018082,2]
[363934602,1748938246747,-1228.53,0.00018082,2]
[363934603,1748938246757,-440.0,0.00018082,2]
[363934604,1748938246767,-1831.97,0.00018082,2]
[363934605,1748938246779,-641.86,0.00018082,2]
[363934606,1748938246789,-1640.36,0.00018082,2]
[363934607,1748938246799,-1712.17,0.00018082,2]
[363934608,1748938246809,-554.27,0.00018082,2]
[363934609,1748938246820,-440.0,0.00018082,2]
[363934610,1748938246830,-440.0,0.00018082,2]
[363934611,1748938246839,-206.17107756,0.00018082,2]
[363934612,1748938246850,-829.22,0.00018082,2]
[363934613,1748938246860,-440.0,0.00018082,2]
[363934614,1748938246871,-440.0,0.00018082,2]
[363934615,1748938246881,-984.8,0.00018082,2]
[363934616,1748938246890,-976.43,0.00018082,2]
[363934617,1748938246900,-532.92767852,0.00018082,2]
[363934618,1748938246910,-440.0,0.00018082,2]
[363934619,1748938246920,-870.31,0.00018082,2]
[363934620,1748938246930,-440.0,0.00018082,2]
[363934621,1748938246940,-440.0,0.00018082,2]
[363934622,1748938246949,-700.74,0.00018082,2]
[363934623,1748938246960,-544.95,0.00018082,2]
[363934624,1748938246969,-440.0,0.00018082,2]
[363934625,1748938246981,-153.0,0.00018082,2]
[363934626,1748938246990,-1520.41100821,0.00018242,2]
[363934627,1748938247000,-500.0,0.00018244,2]
[363934628,1748938247010,-1550.25602371,0.00018279,2]
[363934629,1748938247020,-620.36,0.00018355,2]
[363934630,1748938247030,-440.0,0.00018356,2]
[363934631,1748938247040,-440.0,0.00018356,2]
[363934632,1748938247050,-440.0,0.00018356,2]
[363934633,1748938247060,-509.79,0.00018356,2]
[363934634,1748938247071,-440.0,0.00018356,2]
[363934635,1748938247081,-440.0,0.00018356,2]
[363934636,1748938247091,-997.71,0.00018356,2]
[363934637,1748938247101,-470.36,0.00018356,2]
[363934638,1748938247111,-1616.35,0.00018356,2]
[363934639,1748938247121,-440.0,0.00018356,2]
[363934640,1748938247131,-1272.71,0.00018356,2]
[363934641,1748938247141,-443.68,0.00018356,2]
[363934642,1748938247151,-440.0,0.00018356,2]
[363934643,1748938247161,-440.0,0.00018356,2]
[363934644,1748938247171,-440.0,0.00018356,2]
[363934645,1748938247181,-440.0,0.00018356,2]
[363934646,1748938247191,-1941.54,0.00018356,2]
[363934647,1748938247202,-440.0,0.00018356,2]
[363934648,1748938247211,-440.0,0.00018356,2]
[363934649,1748938247221,-440.0,0.00018356,2]
[363934650,1748938247231,-440.0,0.00018356,2]
[363934651,1748938247241,-440.0,0.00018356,2]
[363934652,1748938247251,-468.1,0.00018356,2]
[363934653,1748938247261,-1941.77,0.00018356,2]
[363934654,1748938247272,-440.0,0.00018356,2]
[363934655,1748938247282,-1228.53,0.00018356,2]
[363934656,1748938247295,-440.0,0.00018356,2]
[363934657,1748938247306,-1831.97,0.00018356,2]
[363934658,1748938247317,-641.86,0.00018356,2]
[363934659,1748938247328,-1640.36,0.00018356,2]
[363934660,1748938247339,-1712.17,0.00018356,2]
[363934661,1748938247349,-554.27,0.00018356,2]
[363934662,1748938247359,-440.0,0.00018356,2]
[363934663,1748938247372,-440.0,0.00018356,2]
[363934664,1748938247383,-829.22,0.00018356,2]
[363934665,1748938247508,-440.0,0.00018356,2]
[363934666,1748938247521,-432.19075775,0.00018356,2]
[363934667,1748938247529,-984.8,0.00018356,2]
[363934668,1748938247538,-976.43,0.00018356,2]
[363934669,1748938247547,-340.0,0.00018356,2]
[363934670,1748938247555,-870.31,0.00018356,2]
[363934671,1748938247565,-440.0,0.00018356,2]
[363934672,1748938247575,-440.0,0.00018356,2]
[363934673,1748938247584,-700.74,0.00018356,2]
[363934674,1748938247593,-440.0,0.00018356,2]
[363934675,1748938247603,-509.51775153,0.00018477,2]
[363934676,1748938247612,-500.0,0.00018477,2]
[363934677,1748938247622,-500.0,0.00018477,2]
[363934678,1748938247631,-1550.25602371,0.00018555,2]
[363934679,1748938247641,-500.0,0.00018566,2]
[363934680,1748938247650,-500.0,0.00018566,2]
[363934681,1748938247659,-500.0,0.00018566,2]
[363934682,1748938247669,-502.91607213,0.00018566,2]
[363934683,1748938247679,-500.0,0.00018587,2]
[363934684,1748938247689,-207.4,0.00018619,2]
[363934685,1748938247698,-500.0,0.00018619,2]
[363934686,1748938247709,-500.0,0.00018619,2]
[363934687,1748938247719,-500.0,0.00018619,2]
[363934688,1748938247728,-500.0,0.00018619,2]
[363934689,1748938247738,-500.0,0.00018619,2]
[363934690,1748938247747,-500.0,0.00018619,2]
[363934691,1748938247756,-500.0,0.00018619,2]
[363934692,1748938247766,-500.0,0.00018619,2]
[363934693,1748938247776,-535.81843021,0.00018619,2]
[363934694,1748938247786,-440.0,0.0001863,2]
[363934695,1748938247795,-440.0,0.0001863,2]
[363934696,1748938247805,-440.0,0.0001863,2]
[363934697,1748938247814,-509.79,0.0001863,2]
[363934698,1748938247825,-440.0,0.0001863,2]
[363934699,1748938247835,-440.0,0.0001863,2]
[363934700,1748938247845,-997.71,0.0001863,2]
[363934701,1748938247855,-470.36,0.0001863,2]
[363934702,1748938247865,-1616.35,0.0001863,2]
[363934703,1748938247875,-440.0,0.0001863,2]
[363934704,1748938247884,-1272.71,0.0001863,2]
[363934705,1748938247894,-440.0,0.0001863,2]
[363934706,1748938247904,-241.12,0.0001863,2]
[363934707,1748938247913,-440.0,0.0001863,2]
[363934708,1748938247923,-440.0,0.0001863,2]
[363934709,1748938247932,-1941.54,0.0001863,2]
[363934710,1748938247942,-440.0,0.0001863,2]
[363934711,1748938247951,-440.0,0.0001863,2]
[363934712,1748938247960,-440.0,0.0001863,2]
[363934713,1748938247971,-440.0,0.0001863,2]
[363934714,1748938247991,-440.0,0.0001863,2]
[363934715,1748938248003,-468.1,0.0001863,2]
[363934716,1748938248015,-1941.77,0.0001863,2]
[363934717,1748938248026,-440.0,0.0001863,2]
[363934718,1748938248037,-1228.53,0.0001863,2]
[363934719,1748938248048,-440.0,0.0001863,2]
[363934720,1748938248059,-1831.97,0.0001863,2]
[363934721,1748938248072,-641.86,0.0001863,2]
[363934722,1748938248084,-1640.36,0.0001863,2]
[363934723,1748938248098,-1712.17,0.0001863,2]
[363934724,1748938248110,-554.27,0.0001863,2]
[363934725,1748938248121,-440.0,0.0001863,2]
[363934726,1748938248132,-440.0,0.0001863,2]
[363934727,1748938248142,-829.22,0.0001863,2]
[363934728,1748938248153,-440.0,0.0001863,2]
[363934729,1748938248163,-984.8,0.0001863,2]
[363934730,1748938248174,-976.43,0.0001863,2]
[363934731,1748938248185,-870.31,0.0001863,2]
[363934732,1748938248196,-440.0,0.0001863,2]
[363934733,1748938248207,-440.0,0.0001863,2]
[363934734,1748938248218,-700.74,0.0001863,2]
[363934735,1748938248228,-440.0,0.0001863,2]
[363934736,1748938248239,-500.0,0.00018668,2]
[363934737,1748938248250,-500.0,0.00018668,2]
[363934738,1748938248260,-507.80432617,0.00018778,2]
[363934739,1748938248272,-1550.25602371,0.00018831,2]
[363934740,1748938248283,-620.36,0.00018901,2]
[363934741,1748938248293,-213.36431858,0.00018904,2]
[363934742,1748938248306,-440.0,0.00018904,2]
[363934743,1748938248317,-440.0,0.00018904,2]
[363934744,1748938248327,-509.79,0.00018904,2]
[363934745,1748938248337,-440.0,0.00018904,2]
[363934746,1748938248347,-440.0,0.00018904,2]
[363934747,1748938248358,-997.71,0.00018904,2]
[363934748,1748938248368,-470.36,0.00018904,2]
[363934749,1748938248378,-1616.35,0.00018904,2]
[363934750,1748938248388,-440.0,0.00018904,2]
[363934751,1748938248398,-1272.71,0.00018904,2]
[363934752,1748938248409,-440.0,0.00018904,2]
[363934753,1748938248419,-440.0,0.00018904,2]
[363934754,1748938248429,-440.0,0.00018904,2]
[363934755,1748938248440,-1941.54,0.00018904,2]
[363934756,1748938248451,-440.0,0.00018904,2]
[363934757,1748938248462,-440.0,0.00018904,2]
[363934758,1748938248473,-440.0,0.00018904,2]
[363934759,1748938248483,-440.0,0.00018904,2]
[363934760,1748938248494,-440.0,0.00018904,2]
[363934761,1748938248505,-468.1,0.00018904,2]
[363934762,1748938248515,-1941.77,0.00018904,2]
[363934763,1748938248525,-440.0,0.00018904,2]
[363934764,1748938248535,-1228.53,0.00018904,2]
[363934765,1748938248546,-440.0,0.00018904,2]
[363934766,1748938248556,-1831.97,0.00018904,2]
[363934767,1748938248566,-641.86,0.00018904,2]
[363934768,1748938248576,-1640.36,0.00018904,2]
[363934769,1748938248586,-1712.17,0.00018904,2]
[363934770,1748938248596,-554.27,0.00018904,2]
[363934771,1748938248610,-440.0,0.00018904,2]
[363934772,1748938248621,-440.0,0.00018904,2]
[363934773,1748938248631,-829.22,0.00018904,2]
[363934774,1748938248642,-440.0,0.00018904,2]
[363934775,1748938248653,-984.8,0.00018904,2]
[363934776,1748938248663,-976.43,0.00018904,2]
[363934777,1748938248674,-870.31,0.00018904,2]
[363934778,1748938248684,-440.0,0.00018904,2]
[363934779,1748938248694,-440.0,0.00018904,2]
[363934780,1748938248705,-700.74,0.00018904,2]
[363934781,1748938248714,-440.0,0.00018904,2]
[363934782,1748938248725,-1000.0,0.00019025,2]
[363934783,1748938248735,-1550.25602371,0.00019107,2]
[363934784,1748938248745,-1004.90978063,0.00019114,2]
[363934785,1748938248756,-510.89426034,0.00019114,2]
[363934786,1748938248766,-522.35728032,0.00019135,2]
[363934787,1748938248776,-620.36,0.00019177,2]
[363934788,1748938248786,-440.0,0.00019178,2]
[363934789,1748938248796,-440.0,0.00019178,2]
[363934790,1748938248807,-430.0,0.00019178,2]
[363934791,1748938248818,-440.0,0.00019178,2]
[363934792,1748938248829,-509.79,0.00019178,2]
[363934793,1748938248838,-498.28,0.00019178,2]
[363934794,1748938248848,-440.0,0.00019178,2]
[363934795,1748938248859,-997.71,0.00019178,2]
[363934796,1748938248869,-470.36,0.00019178,2]
[363934797,1748938248879,-1616.35,0.00019178,2]
[363934798,1748938248889,-440.0,0.00019178,2]
[363934799,1748938248899,-1272.71,0.00019178,2]
[363934800,1748938248909,-440.0,0.00019178,2]
[363934801,1748938248920,-423.9113173,0.00019178,2]
[363934802,1748938248930,-440.0,0.00019178,2]
[363934803,1748938248940,-1941.54,0.00019178,2]
[363934804,1748938248950,-440.0,0.00019178,2]
[363934805,1748938248960,-440.0,0.00019178,2]
[363934806,1748938248970,-440.0,0.00019178,2]
[363934807,1748938248981,-440.0,0.00019178,2]
[363934808,1748938248991,-395.6,0.00019178,2]
[363934809,1748938249001,-468.1,0.00019178,2]
[363934810,1748938249012,-1941.77,0.00019178,2]
[363934811,1748938249022,-1228.53,0.00019178,2]
[363934812,1748938249032,-440.0,0.00019178,2]